fUSD/lending_fUSD_20250826
["ID","MTS","AMOUNT","RATE_DAILY","PERIOD"]
[381489216,1756230784872,-503.27,0.00029315,5]
[381489217,1756230784882,-783.4,0.00029315,5]
[381489218,1756230784892,-1036.02,0.00029315,5]
[381489219,1756230784902,-473.09,0.00029315,5]
[381489220,1756230784911,-400.0,0.00029315,5]
[381489221,1756230784922,-440.17,0.00029315,5]
[381489222,1756230784934,-1153.6,0.00029315,5]
[381489223,1756230784946,-985.74,0.00029315,5]
[381489224,1756230784957,-400.0,0.00029315,5]
[381489225,1756230784966,-640.2,0.00029315,5]
[381489226,1756230784976,-400.0,0.00029315,5]
[381489227,1756230784986,-743.45,0.00029315,5]
[381489228,1756230784997,-712.48,0.00029315,5]
[381489229,1756230785007,-400.0,0.00029315,5]
[381489230,1756230785018,-404.56714994,0.00029315,5]
[381489231,1756230785028,-700.09,0.00029315,5]
[381489232,1756230785039,-268.62424474,0.00029315,5]
[381489233,1756230785049,-400.0,0.00029315,5]
[381489234,1756230785058,-693.81,0.00029315,5]
[381489235,1756230785068,-707.36,0.00029315,5]
[381489236,1756230785077,-406.06,0.00029315,5]
[381489237,1756230785086,-431.16,0.00029315,5]
[381489238,1756230785096,-701.05,0.00029315,5]
[381489239,1756230785105,-400.0,0.00029315,5]
[381489240,1756230785114,-547.99,0.00029315,5]
[381489241,1756230785124,-929.8,0.00029315,5]
[381489242,1756230785133,-400.0,0.00029315,5]
[381489243,1756230785142,-1530.59,0.00029315,5]
[381489244,1756230785151,-482.83,0.00029315,5]
[381489245,1756230785161,-490.23,0.00029315,5]
[381489246,1756230785170,-400.0,0.00029315,5]
[381489247,1756230785179,-400.0,0.00029315,5]
[381489248,1756230785189,-445.31,0.00029315,5]
[381489249,1756230785198,-1341.96,0.00029315,5]
[381489250,1756230785207,-844.87,0.00029315,5]
[381489251,1756230785216,-613.14,0.00029315,5]
[381489252,1756230785226,-400.0,0.00029315,5]
[381489253,1756230785235,-400.0,0.00029315,5]
[381489254,1756230785244,-542.81790849,0.00029315,5]
[381489255,1756230785253,-746.97,0.00029315,5]
[381489256,1756230785263,-526.43,0.00029315,5]
[381489257,1756230785272,-1160.1,0.00029315,5]
[381489258,1756230785283,-400.0,0.00029315,5]
[381489259,1756230785293,-807.88,0.00029315,5]
[381489260,1756230785302,-1586.91,0.00029315,5]
[381489261,1756230785312,-1509.82,0.00029315,5]
[381489262,1756230785321,-642.17,0.00029315,5]
[381489263,1756230785330,-400.0,0.00029315,5]
[381489264,1756230785339,-721.04,0.00029315,5]
[381489265,1756230785349,-507.72,0.00029315,5]
[381489266,1756230785358,-232.25795639,0.00029315,5]
[381489267,1756230785368,-682.86,0.00029315,5]
[381489268,1756230785377,-400.0,0.00029315,5]
[381489269,1756230785387,-400.0,0.00029315,5]
[381489270,1756230785396,-793.12,0.00029315,5]
[381489271,1756230785406,-507.45,0.00029315,5]
[381489272,1756230785415,-670.75,0.00029315,5]
[381489273,1756230785425,-722.78,0.00029315,5]
[381489274,1756230785437,-1421.41,0.00029315,5]
[381489275,1756230785452,-685.96,0.00029315,5]
[381489276,1756230785462,-1219.97,0.00029315,5]
[381489277,1756230785471,-1393.79,0.00029315,5]
[381489278,1756230785481,-944.91,0.00029315,5]
[381489279,1756230785490,-400.0,0.00029315,5]
[381489280,1756230785499,-400.0,0.00029315,5]
[381489281,1756230785508,-616.04,0.00029315,5]
[381489282,1756230785519,-400.0,0.00029315,5]
[381489283,1756230785529,-400.0,0.00029315,5]
[381489284,1756230785538,-400.0,0.00029315,5]
[381489285,1756230785557,-400.0,0.00029315,5]
[381489286,1756230785567,-400.0,0.00029315,5]
[381489287,1756230785576,-744.71,0.00029315,5]
[381489288,1756230785585,-683.79,0.00029315,5]
[381489289,1756230785594,-496.42,0.00029315,5]
[381489290,1756230785603,-400.0,0.00029315,5]
[381489291,1756230785613,-400.0,0.00029315,5]
[381489292,1756230785622,-1520.2,0.00029315,5]
[381489293,1756230785631,-870.39,0.00029315,5]
[381489294,1756230785641,-759.54,0.00029315,5]
[381489295,1756230785650,-579.76,0.00029315,5]
[381489296,1756230785660,-2000.0,0.00029315,30]
[381489297,1756230785669,-513.44,0.00029315,5]
[381489298,1756230785681,-1483.54,0.00029315,5]
[381489299,1756230785690,-352.35983991,0.00029315,5]
[381489300,1756230785700,-1173.63,0.00029315,5]
[381489301,1756230785709,-400.0,0.00029315,5]
[381489302,1756230785720,-646.83,0.00029315,5]
[381489303,1756230785729,-781.98,0.00029315,5]
[381489304,1756230785739,-400.0,0.00029315,5]
[381489305,1756230785748,-483.54,0.00029315,5]
[381489306,1756230785759,-400.0,0.00029315,5]
[381489307,1756230785769,-465.8,0.00029315,5]
[381489308,1756230785779,-889.4,0.00029315,5]
[381489309,1756230785788,-779.46,0.00029315,5]
[381489310,1756230785797,-511.6,0.00029315,5]
[381489311,1756230785806,-400.0,0.00029315,5]
[381489312,1756230785816,-473.06,0.00029315,5]
[381489313,1756230785826,-491.1,0.00029315,5]
[381489314,1756230785835,-508.66,0.00029315,5]
[381489315,1756230785844,-531.34,0.00029315,5]
[381489316,1756230785854,-400.0,0.00029315,5]
[381489317,1756230785975,-696.35,0.00029315,5]
[381489318,1756230785985,-400.0,0.00029315,5]
[381489319,1756230785994,-801.56,0.00029315,5]
[381489320,1756230786003,-400.0,0.00029315,5]
[381489321,1756230786012,-400.0,0.00029315,5]
[381489322,1756230786021,-400.0,0.00029315,5]
[381489323,1756230786033,-400.0,0.00029315,5]
[381489324,1756230786042,-1420.8,0.00029315,5]
[381489325,1756230786051,-771.21,0.00029315,5]
[381489326,1756230786060,-489.59,0.00029315,5]
[381489327,1756230786069,-755.04,0.00029315,5]
[381489328,1756230786079,-400.0,0.00029315,5]
[381489329,1756230786088,-1769.58,0.00029315,5]
[381489330,1756230786097,-681.58,0.00029315,5]
[381489331,1756230786106,-400.0,0.00029315,5]
[381489332,1756230786115,-606.73,0.00029315,5]
[381489333,1756230786124,-606.73,0.00029315,5]
[381489334,1756230786135,-821.91,0.00029315,5]
[381489335,1756230786144,-837.01,0.00029315,5]
[381489336,1756230786153,-1166.43,0.00029315,5]
[381489337,1756230786164,-400.0,0.00029315,5]
[381489338,1756230786173,-400.0,0.00029315,5]
[381489339,1756230786182,-400.0,0.00029315,5]
[381489340,1756230786193,-799.6,0.00029315,5]
[381489341,1756230786203,-400.0,0.00029315,5]
[381489342,1756230786212,-1010.62,0.00029315,5]
[381489343,1756230786222,-690.36,0.00029315,5]
[381489344,1756230786232,-400.0,0.00029315,5]
[381489345,1756230786241,-637.61,0.00029315,5]
[381489346,1756230786250,-1281.24,0.00029315,5]
[381489347,1756230786260,-1590.4,0.00029315,5]
[381489348,1756230786269,-1064.68,0.00029315,5]
[381489349,1756230786278,-1271.37,0.00029315,5]
[381489350,1756230786292,-885.76,0.00029315,5]
[381489351,1756230786302,-491.41,0.00029315,5]
[381489352,1756230786312,-1493.75,0.00029315,5]
[381489353,1756230786321,-1336.69,0.00029315,5]
[381489354,1756230786330,-967.08,0.00029315,5]
[381489355,1756230786339,-408.42,0.00029315,5]
[381489356,1756230786348,-418.99,0.00029315,5]
[381489357,1756230786357,-917.22,0.00029315,5]
[381489358,1756230786366,-531.19,0.00029315,5]
[381489359,1756230786375,-1433.07,0.00029315,5]
[381489360,1756230786384,-570.95,0.00029315,5]
[381489361,1756230786393,-903.82,0.00029315,5]
[381489362,1756230786403,-1558.37,0.00029315,5]
[381489363,1756230786412,-550.9,0.00029315,5]
[381489364,1756230786422,-400.0,0.00029315,5]
[381489365,1756230786431,-431.66,0.00029315,5]
[381489366,1756230786440,-664.06,0.00029315,5]
[381489367,1756230786450,-558.64,0.00029315,5]
[381489368,1756230786459,-400.0,0.00029315,5]
[381489369,1756230786468,-609.04,0.00029315,5]
[381489370,1756230786478,-774.95,0.00029315,5]
[381489371,1756230786487,-502.72,0.00029315,5]
[381489372,1756230786496,-839.6,0.00029315,5]
[381489373,1756230786506,-697.46,0.00029315,5]
[381489374,1756230786517,-968.44,0.00029315,5]
[381489375,1756230786526,-1276.22,0.00029315,5]
[381489376,1756230786539,-1172.64,0.00029315,5]
[381489377,1756230786548,-1114.22,0.00029315,5]
[381489378,1756230786558,-688.1,0.00029315,5]
[381489379,1756230786567,-571.99,0.00029315,5]
[381489380,1756230786576,-400.0,0.00029315,5]
[381489381,1756230786586,-509.97,0.00029315,5]
[381489382,1756230786595,-180.32490413,0.00029315,5]
[381489383,1756230786604,-400.0,0.00029315,5]
[381489384,1756230786613,-580.72,0.00029315,5]
[381489385,1756230786623,-640.51,0.00029315,5]
[381489386,1756230786632,-403.41,0.00029315,5]
[381489387,1756230786641,-821.79,0.00029315,5]
[381489388,1756230786650,-400.0,0.00029315,5]
[381489389,1756230786660,-400.0,0.00029315,5]
[381489390,1756230786669,-1039.88,0.00029315,5]
[381489391,1756230786681,-839.24,0.00029315,5]
[381489392,1756230786691,-417.78,0.00029315,5]
[381489393,1756230786700,-837.82,0.00029315,5]
[381489394,1756230786709,-400.0,0.00029315,5]
[381489395,1756230786719,-400.0,0.00029315,5]
[381489396,1756230786729,-400.0,0.00029315,5]
[381489397,1756230786738,-1270.77,0.00029315,5]
[381489398,1756230786747,-400.0,0.00029315,5]
[381489399,1756230786756,-400.0,0.00029315,5]
[381489400,1756230786766,-400.0,0.00029315,5]
[381489401,1756230786775,-895.98,0.00029315,5]
[381489402,1756230786784,-502.08,0.00029315,5]
[381489403,1756230786793,-598.04,0.00029315,5]
[381489404,1756230786802,-400.0,0.00029315,5]
[381489405,1756230786811,-865.23,0.00029315,5]
[381489406,1756230786821,-400.0,0.00029315,5]
[381489407,1756230786830,-518.54,0.00029315,5]
[381489408,1756230786839,-522.21,0.00029315,5]
[381489409,1756230786848,-848.23,0.00029315,5]
[381489410,1756230786858,-422.68,0.00029315,5]
[381489411,1756230786868,-528.98,0.00029315,5]
[381489412,1756230786876,-728.84,0.00029315,5]
[381489413,1756230786886,-963.39,0.00029315,5]
[381489414,1756230786895,-400.0,0.00029315,5]
[381489415,1756230786905,-618.88,0.00029315,5]
[381489416,1756230786914,-602.44392,0.00029315,5]
[381489417,1756230786923,-957.51,0.00029315,5]
[381489418,1756230786932,-461.75,0.00029315,5]
[381489419,1756230786943,-594.47,0.00029315,5]
[381489420,1756230786952,-1567.09,0.00029315,5]
[381489421,1756230786961,-400.0,0.00029315,5]
[381489422,1756230786971,-400.0,0.00029315,5]
[381489423,1756230786981,-503.53,0.00029315,5]
[381489424,1756230786991,-400.0,0.00029315,5]
[381489425,1756230787000,-1089.76,0.00029315,5]
[381489426,1756230787010,-1276.92,0.00029315,5]
[381489427,1756230787019,-674.18,0.00029315,5]
[381489428,1756230787028,-1533.69,0.00029315,5]
[381489429,1756230787037,-817.0,0.00029315,5]
[381489430,1756230787046,-400.0,0.00029315,5]
[381489431,1756230787055,-676.42,0.00029315,5]
[381489432,1756230787065,-400.0,0.00029315,5]
[381489433,1756230787075,-400.0,0.00029315,5]
[381489434,1756230787084,-1531.09,0.00029315,5]
[381489435,1756230787093,-400.0,0.00029315,5]
[381489436,1756230787102,-1459.11,0.00029315,5]
[381489437,1756230787111,-622.731684,0.00029315,5]
[381489438,1756230787120,-558.77,0.00029315,5]
[381489439,1756230787130,-400.0,0.00029315,5]
[381489440,1756230787139,-627.47,0.00029315,5]
[381489441,1756230787148,-400.0,0.00029315,5]
[381489442,1756230787157,-579.77,0.00029315,5]
[381489443,1756230787166,-1440.73,0.00029315,5]
[381489444,1756230787176,-400.0,0.00029315,5]
[381489445,1756230787185,-1242.42,0.00029315,5]
[381489446,1756230787194,-400.0,0.00029315,5]
[381489447,1756230787203,-1425.56941,0.00029315,5]
[381489448,1756230787212,-1203.37,0.00029315,5]
[381489449,1756230787222,-746.88,0.00029315,5]
[381489450,1756230787231,-400.0,0.00029315,5]
[381489451,1756230787241,-1223.38,0.00029315,5]
[381489452,1756230787250,-400.0,0.00029315,5]
[381489453,1756230787259,-1148.42,0.00029315,5]
[381489454,1756230787268,-1932.27,0.00029315,5]
[381489455,1756230787277,-771.37,0.00029315,5]
[381489456,1756230787287,-400.0,0.00029315,5]
[381489457,1756230787296,-671.24,0.00029315,5]
[381489458,1756230787305,-669.66,0.00029315,5]
[381489459,1756230787314,-1913.94,0.00029315,5]
[381489460,1756230787323,-947.84,0.00029315,5]
[381489461,1756230787335,-739.95,0.00029315,5]
[381489462,1756230787344,-400.0,0.00029315,5]
[381489463,1756230787353,-400.0,0.00029315,5]
[381489464,1756230787362,-400.0,0.00029315,5]
[381489465,1756230787371,-400.0,0.00029315,5]
[381489466,1756230787381,-400.0,0.00029315,5]
[381489467,1756230787390,-691.88,0.00029315,5]
[381489468,1756230787399,-153.79077519,0.00029315,5]
[381489469,1756230787408,-939.77,0.00029315,5]
[381489470,1756230787418,-616.51,0.00029315,5]
[381489471,1756230787428,-400.0,0.00029315,5]
[381489472,1756230787437,-641.49,0.00029315,5]
[381489473,1756230787447,-400.0,0.00029315,5]
[381489474,1756230787456,-1152.08,0.00029315,5]
[381489475,1756230787466,-400.0,0.00029315,5]
[381489476,1756230787475,-269.98711157,0.00029315,5]
[381489477,1756230787485,-638.75,0.00029315,5]
[381489478,1756230787495,-559.5,0.00029315,5]
[381489479,1756230787504,-421.67,0.00029315,5]
[381489480,1756230787513,-1044.69,0.00029315,5]
[381489481,1756230787522,-599.16,0.00029315,5]
[381489482,1756230787531,-605.74,0.00029315,5]
[381489483,1756230787541,-400.0,0.00029315,5]
[381489484,1756230787550,-838.66,0.00029315,5]
[381489485,1756230787560,-887.39,0.00029315,5]
[381489486,1756230787569,-655.13,0.00029315,5]
[381489487,1756230787578,-941.57,0.00029315,5]
[381489488,1756230787587,-471.57,0.00029315,5]
[381489489,1756230787596,-499.66,0.00029315,5]
[381489490,1756230787605,-1079.39,0.00029315,5]
[381489491,1756230787614,-400.0,0.00029315,5]
[381489492,1756230787623,-1594.17,0.00029315,5]
[381489493,1756230787632,-890.980882,0.00029315,5]
[381489494,1756230787642,-1159.56,0.00029315,5]
[381489495,1756230787651,-892.37,0.00029315,5]
[381489496,1756230787660,-773.23,0.00029315,5]
[381489497,1756230787669,-1157.25,0.00029315,5]
[381489498,1756230787680,-686.12,0.00029315,5]
[381489499,1756230787694,-1000.25,0.00029315,5]
[381489500,1756230787703,-1270.92,0.00029315,5]
[381489501,1756230787712,-641.35,0.00029315,5]
[381489502,1756230787724,-400.0,0.00029315,5]
[381489503,1756230787734,-547.19,0.00029315,5]
[381489504,1756230787743,-1052.08,0.00029315,5]
[381489505,1756230787752,-1790.82,0.00029315,5]
[381489506,1756230787764,-400.0,0.00029315,5]
[381489507,1756230787774,-528.70373378,0.00029315,5]
[381489508,1756230787784,-554.83,0.00029315,5]
[381489509,1756230787794,-438.05,0.00029315,5]
[381489510,1756230787803,-400.0,0.00029315,5]
[381489511,1756230787813,-1943.28,0.00029315,5]
[381489512,1756230787823,-746.03,0.00029315,5]
[381489513,1756230787832,-400.0,0.00029315,5]
[381489514,1756230787841,-400.0,0.00029315,5]
[381489515,1756230787851,-518.13,0.00029315,5]
[381489516,1756230787861,-400.0,0.00029315,5]
[381489517,1756230787870,-785.98,0.00029315,5]
[381489518,1756230787880,-993.89,0.00029315,5]
[381489519,1756230787890,-818.48,0.00029315,5]
[381489520,1756230787899,-400.0,0.00029315,5]
[381489521,1756230787909,-1104.44,0.00029315,5]
[381489522,1756230787918,-1314.35,0.00029315,5]
[381489523,1756230787927,-1147.4,0.00029315,5]
[381489524,1756230787937,-400.0,0.00029315,5]
[381489525,1756230787947,-400.0,0.00029315,5]
[381489526,1756230787956,-494.04,0.00029315,5]
[381489527,1756230787965,-400.0,0.00029315,5]
[381489528,1756230787975,-762.17,0.00029315,5]
[381489529,1756230787985,-1207.12,0.00029315,5]
[381489530,1756230787995,-400.0,0.00029315,5]
[381489531,1756230788006,-803.64,0.00029315,5]
[381489532,1756230788015,-400.0,0.00029315,5]
[381489533,1756230788026,-479.74,0.00029315,5]
[381489534,1756230788036,-1365.31,0.00029315,5]
[381489535,1756230788045,-577.41,0.00029315,5]
[381489536,1756230788055,-796.06,0.00029315,5]
[381489537,1756230788064,-596.98,0.00029315,5]
[381489538,1756230788075,-649.76,0.00029315,5]
[381489539,1756230788084,-400.0,0.00029315,5]
[381489540,1756230788095,-865.97,0.00029315,5]
[381489541,1756230788106,-1461.95,0.00029315,5]
[381489542,1756230788115,-679.44,0.00029315,5]
[381489543,1756230788125,-1811.76,0.00029315,5]
[381489544,1756230788136,-400.0,0.00029315,5]
[381489545,1756230788147,-400.0,0.00029315,5]
[381489546,1756230788157,-1319.63,0.00029315,5]
[381489547,1756230788167,-439.96,0.00029315,5]
[381489548,1756230788177,-400.0,0.00029315,5]
[381489549,1756230788188,-400.0,0.00029315,5]
[381489550,1756230788198,-1057.17,0.00029315,5]
[381489551,1756230788208,-400.0,0.00029315,5]
[381489552,1756230788217,-400.0,0.00029315,5]
[381489553,1756230788227,-400.0,0.00029315,5]
[381489554,1756230788236,-736.79,0.00029315,5]
[381489555,1756230788246,-747.22,0.00029315,5]
[381489556,1756230788256,-1451.65,0.00029315,5]
[381489557,1756230788266,-1376.31,0.00029315,5]
[381489558,1756230788275,-1514.02,0.00029315,5]
[381489559,1756230788286,-449.86,0.00029315,5]
[381489560,1756230788295,-1074.86,0.00029315,5]
[381489561,1756230788305,-794.3,0.00029315,5]
[381489562,1756230788315,-769.79,0.00029315,5]
[381489563,1756230788324,-400.0,0.00029315,5]
[381489564,1756230788334,-1162.07,0.00029315,5]
[381489565,1756230788343,-934.37,0.00029315,5]
[381489566,1756230788352,-1986.93,0.00029315,5]
[381489567,1756230788363,-708.52,0.00029315,5]
[381489568,1756230788372,-1255.96,0.00029315,5]
[381489569,1756230788381,-1235.73,0.00029315,5]
[381489570,1756230788390,-1339.03,0.00029315,5]
[381489571,1756230788400,-400.0,0.00029315,5]
[381489572,1756230788409,-400.0,0.00029315,5]
[381489573,1756230788418,-826.32,0.00029315,5]
[381489574,1756230788428,-817.2,0.00029315,5]
[381489575,1756230788437,-1322.4,0.00029315,5]
[381489576,1756230788447,-621.44,0.00029315,5]
[381489577,1756230788456,-1563.34,0.00029315,5]
[381489578,1756230788466,-400.0,0.00029315,5]
[381489579,1756230788475,-1226.73,0.00029315,5]
[381489580,1756230788485,-567.37,0.00029315,5]
[381489581,1756230788494,-469.42,0.00029315,5]
[381489582,1756230788503,-1033.23,0.00029315,5]
[381489583,1756230788513,-400.0,0.00029315,5]
[381489584,1756230788523,-583.42,0.00029315,5]
[381489585,1756230788532,-400.0,0.00029315,5]
[381489586,1756230788541,-400.0,0.00029315,5]
[381489587,1756230788551,-1617.06,0.00029315,5]
[381489588,1756230788559,-496.78,0.00029315,5]
[381489589,1756230788569,-751.23,0.00029315,5]
[381489590,1756230788578,-571.51,0.00029315,5]
[381489591,1756230788587,-740.82,0.00029315,5]
[381489592,1756230788596,-1057.52,0.00029315,5]
[381489593,1756230788605,-434.35,0.00029315,5]
[381489594,1756230788614,-752.52,0.00029315,5]
[381489595,1756230788623,-1288.56,0.00029315,5]
[381489596,1756230788632,-405.7486343,0.00029315,5]
[381489597,1756230788642,-1749.23,0.00029315,5]
[381489598,1756230788651,-400.0,0.00029315,5]
[381489599,1756230788660,-1512.96,0.00029315,5]
[381489600,1756230788669,-1076.61,0.00029315,5]
[381489601,1756230788680,-4628.51,0.00029315,5]
[381489602,1756230788690,-400.0,0.00029315,5]
[381489603,1756230788699,-485.34,0.00029315,5]
[381489604,1756230788708,-612.79,0.00029315,5]
[381489605,1756230788719,-546.54,0.00029315,5]
[381489606,1756230788728,-1309.38,0.00029315,5]
[381489607,1756230788737,-875.95,0.00029315,5]
[381489608,1756230788747,-400.0,0.00029315,5]
[381489609,1756230788757,-1567.59,0.00029315,5]
[381489610,1756230788766,-2458.03,0.00029315,5]
[381489611,1756230788775,-400.0,0.00029315,5]
[381489612,1756230788784,-1637.37,0.00029315,5]
[381489613,1756230788793,-431.25,0.00029315,5]
[381489614,1756230788802,-875.76,0.00029315,5]
[381489615,1756230788811,-805.91,0.00029315,5]
[381489616,1756230788820,-1335.44,0.00029315,5]
[381489617,1756230788829,-813.45,0.00029315,5]
[381489618,1756230788838,-400.0,0.00029315,5]
[381489619,1756230788847,-400.0,0.00029315,5]
[381489620,1756230788856,-776.37,0.00029315,5]
[381489621,1756230788865,-440.79,0.00029315,5]
[381489622,1756230788874,-400.0,0.00029315,5]
[381489623,1756230788883,-1213.81,0.00029315,5]
[381489624,1756230788892,-937.37,0.00029315,5]
[381489625,1756230788902,-686.49,0.00029315,5]
[381489626,1756230788911,-400.0,0.00029315,5]
[381489627,1756230788921,-713.94,0.00029315,5]
[381489628,1756230788930,-862.64,0.00029315,5]
[381489629,1756230788939,-922.13,0.00029315,5]
[381489630,1756230788949,-842.8,0.00029315,5]
[381489631,1756230788959,-400.0,0.00029315,5]
[381489632,1756230788968,-1109.71,0.00029315,5]
[381489633,1756230788977,-400.0,0.00029315,5]
[381489634,1756230788987,-400.0,0.00029315,5]
[381489635,1756230788996,-400.0,0.00029315,5]
[381489636,1756230789006,-400.0,0.00029315,5]
[381489637,1756230789016,-537.55,0.00029315,5]
[381489638,1756230789026,-400.0,0.00029315,5]
[381489639,1756230789036,-996.63,0.00029315,5]
[381489640,1756230789045,-1260.94,0.00029315,5]
[381489641,1756230789054,-400.0,0.00029315,5]
[381489642,1756230789064,-410.02,0.00029315,5]
[381489643,1756230789074,-1760.66,0.00029315,5]
[381489644,1756230789084,-400.0,0.00029315,5]
[381489645,1756230789094,-400.0,0.00029315,5]
[381489646,1756230789104,-980.95,0.00029315,5]
[381489647,1756230789114,-400.0,0.00029315,5]
[381489648,1756230789124,-400.0,0.00029315,5]
[381489649,1756230789134,-400.0,0.00029315,5]
[381489650,1756230789144,-886.79,0.00029315,5]
[381489651,1756230789154,-400.0,0.00029315,5]
[381489652,1756230789163,-400.0,0.00029315,5]
[381489653,1756230789174,-1351.73,0.00029315,5]
[381489654,1756230789184,-400.0,0.00029315,5]
[381489655,1756230789194,-400.0,0.00029315,5]
[381489656,1756230789204,-457.01,0.00029315,5]
[381489657,1756230789214,-933.82,0.00029315,5]
[381489658,1756230789224,-400.0,0.00029315,5]
[381489659,1756230789235,-1161.18,0.00029315,5]
[381489660,1756230789245,-400.0,0.00029315,5]
[381489661,1756230789258,-504.23,0.00029315,5]
[381489662,1756230789268,-763.04,0.00029315,5]
[381489663,1756230789278,-626.61,0.00029315,5]
[381489664,1756230789289,-1778.67,0.00029315,5]
[381489665,1756230789299,-1427.19,0.00029315,5]
[381489666,1756230789308,-595.35,0.00029315,5]
[381489667,1756230789318,-400.0,0.00029315,5]
[381489668,1756230789327,-1212.24,0.00029315,5]
[381489669,1756230789337,-659.0,0.00029315,5]
[381489670,1756230789347,-400.0,0.00029315,2]
[381489671,1756230789357,-1136.12,0.00029315,5]
[381489672,1756230789369,-400.0,0.00029315,5]
[381489673,1756230789378,-400.0,0.00029315,5]
[381489674,1756230789388,-400.0,0.00029315,5]
[381489675,1756230789398,-1388.02,0.00029315,5]
[381489676,1756230789408,-400.0,0.00029315,5]
[381489677,1756230789418,-851.42,0.00029315,5]
[381489678,1756230789427,-790.48,0.00029315,5]
[381489679,1756230789437,-424.81,0.00029315,5]
[381489680,1756230789447,-1031.7,0.00029315,5]
[381489681,1756230789456,-400.0,0.00029315,5]
[381489682,1756230789466,-978.35,0.00029315,5]
[381489683,1756230789475,-400.0,0.00029315,5]
[381489684,1756230789485,-400.0,0.00029315,5]
[381489685,1756230789494,-835.03,0.00029315,5]
[381489686,1756230789504,-400.0,0.00029315,5]
[381489687,1756230789514,-406.28,0.00029315,5]
[381489688,1756230789523,-1052.63,0.00029315,5]
[381489689,1756230789533,-1326.59,0.00029315,5]
[381489690,1756230789543,-686.76,0.00029315,5]
[381489691,1756230789552,-463.9,0.00029315,5]
[381489692,1756230789561,-441.77,0.00029315,5]
[381489693,1756230789571,-1026.11,0.00029315,5]
[381489694,1756230789580,-400.0,0.00029315,5]
[381489695,1756230789589,-400.0,0.00029315,5]
[381489696,1756230789598,-510.24,0.00029315,5]
[381489697,1756230789608,-400.0,0.00029315,5]
[381489698,1756230789617,-400.0,0.00029315,5]
[381489699,1756230789627,-400.0,0.00029315,5]
[381489700,1756230789636,-1032.18,0.00029315,5]
[381489701,1756230789645,-1025.85,0.00029315,5]
[381489702,1756230789655,-400.0,0.00029315,5]
[381489703,1756230789665,-682.58,0.00029315,5]
[381489704,1756230789675,-400.0,0.00029315,5]
[381489705,1756230789689,-682.08,0.00029315,5]
[381489706,1756230789699,-611.11,0.00029315,5]
[381489707,1756230789708,-507.58,0.00029315,5]
[381489708,1756230789718,-707.77,0.00029315,5]
[381489709,1756230789730,-1988.35,0.00029315,5]
[381489710,1756230789740,-671.23,0.00029315,5]
[381489711,1756230789751,-400.0,0.00029315,5]
[381489712,1756230789764,-400.0,0.00029315,5]
[381489713,1756230789775,-414.02,0.00029315,5]
[381489714,1756230789785,-1108.22,0.00029315,5]
[381489715,1756230789794,-620.36,0.00029315,5]